Cogmind - Beta 15 @@@ ROGUE MODE // 2025.09.27 @ 11:03:39 Player: Autumn Result: Destroyed by C-17 Slicer with Blade Saw Performance ------------- Evolutions (2) 1000 Regions Visited (3) 600 Robots Destroyed (15) 75 Value Destroyed (334) 334 Prototype IDs (0) 0 Alien Tech Used (0) 0 Bonus (0) 0 TOTAL SCORE: 2009 Bonus ------- None Cogmind --------- Core Integrity 0/550 Matter 300/300 Energy 100/100 System Corruption 0% Temperature Cool (0) Movement Core (200) Ox3 Location -8/Materials Parts ------- > --- POWER (1) -------- (None) > --- PROPULSION (2) --- (None) > --- UTILITY (4) ------ Medium Storage Unit > --- WEAPON (4) ------- (None) > --- INVENTORY (10) --- Flight Unit Improved Heat Sink Visual Processing Unit Seismic Detector Power Shielding Improved Light Armor Plating Scrap Shield Peak State ------------ > --- POWER ------------ Light Deuterium Engine > --- PROPULSION ------- Wheel Wheel > --- UTILITY ---------- Medium Storage Unit Advanced Weight Redist. System Signal Interpreter Advanced Targeting Computer > --- WEAPON ----------- Small Laser Beam Cannon Heavy Particle Cannon Assault Rifle > --- INVENTORY -------- Light Ion Engine Improved Heat Sink Visual Processing Unit Sensor Array Seismic Detector Power Shielding Improved Light Armor Plating Scrap Shield Light Cannon [Rating: 20] Favorites ----------- Power Light Ion Engine Engine Light Ion Engine Propulsion Wheel Leg Aluminum Leg Wheel Wheel Utility Medium Storage Unit Device Sensor Array Storage Medium Storage Unit Processor Signal Interpreter Protection Power Shielding Weapon Medium Laser Energy Gun Medium Laser Energy Cannon Beam Cannon Ballistic Gun Assault Rifle Ballistic Cannon Light Cannon Build | -11 -10 -10 -8 ------- Run | Yrd Mat Sub Mat Slots Evolved 4 | . . . 4 Power . | . . . . Propulsion . | . . . . Utility 2 | . . . 2 Weapon 2 | . . . 2 Parts Attached 28 | 9 7 1 11 Power 3 | 1 . . 2 Engine 3 | 1 . . 2 Core . | . . . . Reactor . | . . . . Propulsion 9 | 4 2 . 3 Treads . | . . . . Leg 2 | 2 . . . Wheel 7 | 2 2 . 3 Hover . | . . . . Flight . | . . . . Utility 8 | 1 4 . 3 Device 3 | 1 1 . 1 Storage 1 | . 1 . . Processor 2 | . . . 2 Hackware . | . . . . Protection 2 | . 2 . . Artifact . | . . . . Weapon 8 | 3 1 1 3 Energy Gun 2 | 1 . . 1 Energy Cannon 2 | . . 1 1 Ballistic Gun 3 | 2 . . 1 Ballistic Cannon 1 | . 1 . . Launcher . | . . . . Special Weapon . | . . . . Impact Weapon . | . . . . Slashing Weapon . | . . . . Piercing Weapon . | . . . . Special Melee Weapon . | . . . . Unidentified Prototypes . | . . . . Parts Lost 12 | . 1 . 11 Power 3 | . . . 3 Propulsion 3 | . . . 3 Utility 2 | . 1 . 1 Weapon 4 | . . . 4 Highest Loss Streak 7 | . 1 . 7 To Critical Strikes . | . . . . Average Backups 5 | 2 5 8 7 Power . | . . . . Propulsion 1 | 1 1 2 1 Utility 2 | . . 3 5 Weapon 1 | 1 3 2 . Tool/Special . | . . . . Unused Backups 5 | . . . 5 Power . | . . . . Propulsion 1 | . . . 1 Utility 4 | . . . 4 Weapon . | . . . . Tool/Special . | . . . . Average Slot Usage (%) 93 | . 95 100 88 Engine 11 | . 14 14 7 Wheel 22 | . 28 28 14 Device 8 | . 11 . 9 Storage 8 | . 4 14 9 Processor 5 | . . . 12 Protection 7 | . 8 13 2 Energy Gun 9 | . 14 8 5 Energy Cannon 6 | . . 5 12 Ballistic Gun 7 | . 12 . 7 Ballistic Cannon 6 | . 1 14 5 Peak Build Rating 20 | 6 8 8 20 Average Rating 9 | 3 6 7 15 On Entrance 5 | . 6 8 8 Naked Turns . | . . . . Heaviest Build 29 | 7 19 20 29 Greatest Support 29 | 20 20 20 29 Greatest Overweight (x) 5 | . . . 5 Average Overweight (x) . | . . . . Largest Inventory Capacity 10 | 5 10 10 10 Average Capacity 8 | 5 6 10 10 Most Carried 10 | 5 9 10 10 Average Carried 6 | 2 5 9 8 Final Capacity 10 | 5 10 10 10 Final Carried 9 | 4 9 9 8 Class Distribution -------------------- 68% | Mutant 9% | Scavenger-Gunner 9% | Skirmisher 7% | Gunner 5% | Scavenger-Skirmisher Dominant Class ---------------- Mutant | -10/Materials Mutant | -10/Subcaves Scavenger-Gunner | -8/Materials Resources | -11 -10 -10 -8 ----------- Run | Yrd Mat Sub Mat Matter Collected 697 | 253 86 120 238 Remotely . | . . . . Salvage Created 409 | 35 70 . 304 Parts 30 | 4 1 . 25 Haulers Intercepted . | . . . . Recyclers Shooed . | . . . . Parts Field Recycled . | . . . . Retrieved Matter . | . . . . Parts Self-Destructed 5 | . . 5 . Prevented . | . . . . Kills | -11 -10 -10 -8 ------- Run | Yrd Mat Sub Mat Combat Hostiles Destroyed 10 | 1 1 . 8 Guns 3 | 1 1 . 1 Cannons 6 | . . . 6 Classes Destroyed 6 | 1 1 . 4 Worker 3 | . . . 3 Watcher 2 | . 1 . 1 Swarmer 5 | . . . 5 Grunt 3 | 1 1 . 1 Duelist 1 | . . . 1 Sentry 1 | . . . 1 Best Kill Streak 6 | 1 1 . 6 Combat Bots Only 4 | 1 1 . 4 Max Kills in Single Turn 1 | 1 1 . 1 Gunslinging . | . . . . Exploded . | . . . . Melee . | . . . . Uniques/NPCs Destroyed . | . . . . Combat | -11 -10 -10 -8 -------- Run | Yrd Mat Sub Mat Hostile Shots Fired 203 | 6 21 17 159 Missed 57 | 3 9 6 39 Hits 146 | 3 12 11 120 Melee 9 | . . . 9 Projectile 137 | 3 12 11 111 Critical Strikes 11 | . . 1 10 Damage Taken 1893 | 31 229 161 1472 Core 654 | 10 53 40 551 Absorbed by Shields . | . . . . Redirected to Shielding 9 | . . 3 6 Core Remaining (%) 77 | 96 . 58 . Volleys Fired 49 | 6 11 8 24 Largest 4 | 2 2 2 4 Hottest 195 | 70 80 80 195 Shots Fired 140 | 12 22 16 90 Gun 77 | 12 21 8 36 Cannon 63 | . 1 8 54 Launcher . | . . . . Special . | . . . . Kinetic 60 | 6 11 8 35 Thermal 80 | 6 11 8 55 Explosive . | . . . . Electromagnetic . | . . . . Robot Hit Streak 12 | 4 6 4 12 Robot Miss Streak 6 | 3 3 6 3 Penetration Max . | . . . . Secondary Targets . | . . . . Shots Hit Robots 75 | 7 11 8 49 Core Hits 27 | 2 5 1 19 Critical Kills 1 | . . . 1 Critical Parts Destroyed . | . . . . Critical Strikes 1 | . . . 1 Meltdown 1 | . . . 1 Melee Attacks . | . . . . Impact . | . . . . Slashing . | . . . . Piercing . | . . . . Sneak Attacks . | . . . . Combat Hostiles . | . . . . Follow-up Attacks . | . . . . Damage Inflicted 1312 | 89 223 147 853 Guns 484 | 89 109 37 249 Cannons 730 | . 17 110 603 Explosions 97 | . 97 . . Melee . | . . . . Ramming 1 | . . . 1 Kinetic 460 | 51 63 110 236 Thermal 754 | 38 63 37 616 Explosive 97 | . 97 . . Electromagnetic . | . . . . Impact . | . . . . Slashing . | . . . . Piercing . | . . . . Highest Corruption . | . . . . Average Corruption . | . . . . Corruption Purged . | . . . . Corruption Blocked . | . . . . Overload Shots . | . . . . Overflow Damage 28 | . 15 8 5 Projectiles 13 | . . 8 5 Explosions 15 | . 15 . . Melee . | . . . . Knockbacks 5 | . 1 2 2 Impact . | . . . . Kinetic 4 | . 1 2 1 Secondary 1 | . . . 1 Self-Inflicted Damage 61 | . 61 . . Shots 1 | . 1 . . Rammed 1 | . . . 1 Targets Rammed 1 | . . . 1 Kicked . | . . . . Crushed . | . . . . Highest Temperature 408 | 63 136 1 408 Average Temperature 132 | 27 50 1 166 Received Heat Transfer 657 | 18 96 102 441 Effects 2 | . . . 2 Shutdowns 1 | . . . 1 Energy Bleed 1 | . . . 1 Siege Activations . | . . . . Martial Activations . | . . . . Shielding Activations . | . . . . Robots Disrupted . | . . . . Combat Hostiles . | . . . . Robots Corrupted . | . . . . Combat Hostiles . | . . . . Parts Fried . | . . . . Impact Corruptions . | . . . . Robots Melted 1 | . . . 1 Combat Hostiles 1 | . . . 1 Parts Melted 3 | . . . 3 Heat Transferred 1557 | 111 185 111 1150 Parts Sabotaged . | . . . . Parts Stolen . | . . . . Parts Stripped . | . . . . Power Chain Reactions . | . . . . Alert | -11 -10 -10 -8 ------- Run | Yrd Mat Sub Mat Maximum Alert Level . | . . . . Low Security (%) 100 | 100 100 . 100 Level 1 . | . . . . Level 2 . | . . . . Level 3 . | . . . . Level 4 . | . . . . Level 5 . | . . . . High Security . | . . . . Max Security . | . . . . Peak Influence 147 | 20 45 . 147 Initial 6 | . 6 . . Average 30 | 1 6 . 65 Influence Increases 428 | 20 88 . 320 Destroy 0b10 Robot/C 200 | 20 20 . 160 Destroy 0b10 Robot/NC 25 | . 5 . 20 Destroy Leader 54 | . 12 . 42 Disable Machine 30 | . 15 . 15 Destroy Structure 29 | . 21 . 8 Partial Spotted 15 | . . . 15 Lose Combat Pursuer 75 | . 15 . 60 Influence Decreases 383 | 10 73 25 275 Entered New Map 17 | . 4 13 . Time Decay 246 | 10 59 12 165 Lost Part 120 | . 10 . 110 Squads Dispatched 3 | . 1 . 2 Investigation . | . . . . Extermination . | . . . . Reinforcement 3 | . 1 . 2 Assault . | . . . . Garrison . | . . . . Intercept . | . . . . Searches Triggered . | . . . . Construction Impeded . | . . . . Haulers Reinforced . | . . . . Active Scanning Responses . | . . . . Cargo Convoy Interrupts . | . . . . Stealth | -11 -10 -10 -8 --------- Run | Yrd Mat Sub Mat Distress Signals 1 | . . . 1 Communications Jammed . | . . . . Distress Signals . | . . . . Times Spotted 31 | 1 4 4 22 Peak Tracking Total 7 | 1 3 2 7 Tactical Retreats 3 | . 1 . 2 Traps | -11 -10 -10 -8 ------- Run | Yrd Mat Sub Mat Traps Triggered . | . . . . Indirectly . | . . . . Trap Hack Attempts . | . . . . Triggered . | . . . . Disarmed . | . . . . Reprogrammed . | . . . . Reused . | . . . . Traps Extracted . | . . . . Installed . | . . . . Triggered . | . . . . Machines | -11 -10 -10 -8 ---------- Run | Yrd Mat Sub Mat Machines Disabled 2 | . 1 . 1 Max in Single Turn 1 | . 1 . 1 Machines Repaired . | . . . . Machines Dismantled . | . . . . Machines Sabotaged . | . . . . Overloaded Fab Kills . | . . . . Hacking | -11 -10 -10 -8 --------- Run | Yrd Mat Sub Mat Machines Accessed 3 | . 1 . 2 Terminals 3 | . 1 . 2 Fabricators . | . . . . Repair Stations . | . . . . Recycling Units . | . . . . Scanalyzers . | . . . . Garrison Access . | . . . . Total Hacks 6 | . 1 . 5 Successful 3 | . 1 . 2 Failed 3 | . . . 3 Catastrophic . | . . . . Database Lockouts . | . . . . Manual . | . . . . Terminals 6 | . 1 . 5 Fabricators . | . . . . Repair Stations . | . . . . Recycling Units . | . . . . Scanalyzers . | . . . . Garrison Access . | . . . . Terminal Hacks 3 | . 1 . 2 Record 1 | . . . 1 Alert Level 1 | . . . 1 Hauler Manifests 1 | . 1 . . Fabricator Hacks . | . . . . Repair Station Hacks . | . . . . Recycling Unit Hacks . | . . . . Scanalyzer . | . . . . Garrison Access Hacks . | . . . . Unauthorized Hacks . | . . . . Terminals . | . . . . Fabricators . | . . . . Repair Stations . | . . . . Recycling Units . | . . . . Scanalyzers . | . . . . Garrison Access . | . . . . Data Cores Recovered . | . . . . Used . | . . . . Hacking Detections 1 | . . . 1 Full Trace Events . | . . . . Feedback Events . | . . . . Feedback Blocked . | . . . . Robot Schematics Acquired . | . . . . Robots Built . | . . . . Authchips . | . . . . Time . | . . . . Total Robot Build Rating . | . . . . Part Schematics Acquired . | . . . . Parts Built . | . . . . Authchips . | . . . . Time . | . . . . Total Part Build Rating . | . . . . Parts Repaired . | . . . . Time . | . . . . Parts Recycled . | . . . . Recycled Matter . | . . . . Retrieved Matter . | . . . . Retrieved Components . | . . . . Parts Scanalyzed . | . . . . Part Schematics Acquired . | . . . . Parts Damaged . | . . . . Bothacking | -11 -10 -10 -8 ------------ Run | Yrd Mat Sub Mat Used RIF Installer . | . . . . Robots Hacked . | . . . . Non-combat . | . . . . Combat . | . . . . Robot Hacks Applied . | . . . . Relay Couplers Released . | . . . . Fabnet Peak Effective % . | . . . . Robots Rewired . | . . . . Allies Hacked . | . . . . Hacks Repelled . | . . . . Allies | -11 -10 -10 -8 -------- Run | Yrd Mat Sub Mat Total Allies . | . . . . Largest Group . | . . . . Highest-Rated Group . | . . . . Highest-Rated Ally . | . . . . Total Orders . | . . . . Ally Attacks . | . . . . Total Damage . | . . . . Kills . | . . . . Allies Corrupted . | . . . . Allies Melted . | . . . . Intel | -11 -10 -10 -8 ------- Run | Yrd Mat Sub Mat Active Infowar (turns) 308 | . 130 8 170 Sensors 308 | . 130 8 170 Robot Analysis Total . | . . . . Derelict Logs Recovered 1 | . . 1 . Drone Launches . | . . . . Drone Recoveries . | . . . . Exploration | -11 -10 -10 -8 ------------- Run | Yrd Mat Sub Mat Turns Passed 1059 | 185 324 186 364 Spaces Moved 908 | 136 321 187 264 Core 42 | 26 . . 16 Treads . | . . . . Legs . | . . . . Wheels 866 | 110 321 187 248 Hover . | . . . . Flight . | . . . . Fastest Speed 50 | 50 80 80 80 Average Speed 83 | 74 80 80 93 Slowest Speed 300 | 80 80 80 300 Overloaded Moves . | . . . . Propulsion Burnouts . | . . . . Robots Hopped . | . . . . Potential Cave-ins . | . . . . Cave-ins Triggered . | . . . . Exploration Rate (%) 14 | 7 25 8 19 Regions Visited 3 Branch Regions 1 Pre-discovered Areas 1 | . . 1 . Known Exits Taken . | . . . . Unknown Exits Taken 3 | 1 1 1 . Scrap Searched 1 | . . 1 . Spaces Dug . | . . . . Terrain Destroyed 35 | . 30 . 5 Melee . | . . . . Projectile 5 | . . . 5 AOE 30 | . 30 . . Terrain Rammed . | . . . . Walls Destroyed . | . . . . Machines Disabled . | . . . . Actions | -11 -10 -10 -8 --------- Run | Yrd Mat Sub Mat Total 1107 | 210 368 206 323 Wait 61 | 39 14 5 3 Move 905 | 135 320 186 264 Hop . | . . . . Pick Up 38 | 14 11 1 12 Fast Attach . | . . . . Attach 24 | 11 4 1 8 Detach 2 | 1 1 . . Swap 11 | . 3 3 5 Drop 16 | 4 4 2 6 Fire 49 | 6 11 8 24 Melee . | . . . . Ram 1 | . . . 1 Kick . | . . . . Crush . | . . . . Escape Stasis . | . . . . Rewire . | . . . . Trap . | . . . . Miscellaneous . | . . . . Route ------- -11/Scrapyard -10/Materials (discovered 3 exits: [*Mat] / [*Min] / [*Sub]) -10/Subcaves -8/Materials History --------- Turn | Location | Event 3 | -11/Scrapyard | Met Revision 17 151 | -11/Scrapyard | Discovered new exit (range 8) 186 | -11/Scrapyard | Entered Materials 276 | -10/Materials | Discovered new exit (range 7) 304 | -10/Materials | Build established: Mutant 426 | -10/Materials | Discovered new exit (range 16) 426 | -10/Materials | Discovered new exit (range 8) 510 | -10/Materials | Entered Subcaves 598 | -10/Subcaves | Learned location of Storage (-9) 673 | -10/Subcaves | Discovered new exit (range 13) 696 | -10/Subcaves | Entered Materials 696 | -8/Materials | Evolved 4 slots: Utility x2, Weapon x2 1036 | -8/Materials | Core integrity fell below 50% 1055 | -8/Materials | Core integrity fell below 20% 1060 | -8/Materials | Destroyed by C-17 Slicer with Blade Saw Last Messages --------------- K-01 Serf cleans the Terminal. ALERT: Suspicious intruders detected, dispatching Cutter reinforcements to area. K-01 Serf cleans the Terminal. Lgt. Ion Engine destroyed. Wheel destroyed. M-13 Machinist repairs G-47 Trooper. Hvy. Particle Cannon destroyed. M-13 Machinist fits Backup Power I on G-47 Trooper. G-47 Trooper destroyed. K-01 Serf cleans the Terminal. Slammed into S-10 Pest. Ramming works as a last resort when unarmed or blocked, but can have serious negative consequences. M-13 Machinist repairs K-01 Serf. K-01 Serf collects debris. Adv. Targeting Computer severed. K-01 Serf collects debris. Signal Interpreter severed. [Achievement: First Step to Greatness] Map ----- +----------------------------------------------------+ | ?????????????????????????????# ###+######### | | ?????????????????????????????# #????? | | ?????????????????????????????# T #????? | | ?????????????????????????????# #????? | | ?????????????????????????????# #### #????? | | ????????????????????????????########### #????? | | ????????????????????????????# # #????? | | ????????????????????????????# """ + ###+## | | ???????????????????#######??# """"" # | | ??????????????????## #??# """"" # | | ????????# ###### #### """"" +/! | | ??????????? T / """ ##!####### | | ????????????????#### #### ##%#?????? | | ???????????????????# #??# = ##=#?????? | | ???????????????????## =################ #?????? | | ????# ############### ################!#?????? | | ????#^ ^+ # != *[= #?????? | | ????##### # ################ #?????? | | ????????# ] # #??????????????# #?????? | | ????????# """" = *=[# #??????????????# #?????? | | ????????# """!%"T"%# #??????????????# #?????? | | ????????# """"[ """[/gs #??????????????# #?????? | | ????????# % %# #??????????????#/#?????? | | ????????#############Ycc##????????????? #?????? | | ????????????##?????# c #????????????? #?????? | | ???????????????????# @ #????????????? #?????? | | ???????????????????# T + ???????????? ??????? | | ???????????????????# # ???????????! ??????? | | ???????????????????# # ?????????? ??????? | | ???????????????????## ##?###????????? ??????? | | ????????????????????# #?????????????? ??????? | | ????????????????????# +?????????????? ??????? | | ????????????????????# #?????????????? ??????? | | ????????????????????# #??????????????????????? | | ????????????????????# ???????????????????????? | | ????????????????????# ???????????????????????? | | ????????????????????# ???????????????????????? | | ????????????????????# ???????????????????????? | | ????????????????????#u ???????????????????????? | | ????????????????????# ???????????????????????? | | ????????????????????? ???????????????????????? | | ???????????????????????????????????????????????? | | ???????????????????????????????????????????????? | | ???????????????????????????????????????????????? | | ???????????????????????????????????????????????? | | ???????????????????????????????????????????????? | | ???????????????????????????????????????????????? | | ???????????????????????????????????????????????? | | ???????????????????????????????????????????????? | | ???????????????????????????????????????????????? | +----------------------------------------------------+ Best States ------------- Heat Dissipation 35 Energy Generation 14 Energy Capacity 140 Matter Stores 300 Matter Capacity 300 Sight Range 16 Robot Scan Range 14 Terrain Scan Density 10 Additional Mass Support 9 Power Shielding 33 Evasion (%) 44 Targeting Accuracy 8 Item Schematics ----------------- None Robot Schematics ------------------ None Fabricated ------------ Nothing Repaired ---------- Nothing Alien Tech Used ----------------- None Achievements -------------- Crack Shot First Step to Greatness It's Just You Shopping List Storm Trooper Uninvited Guest Challenges ------------ None Game ------ Seed BiometalMachineSpoofer Manual? 0 Play Time 00:33:59 Cumulative 0.5 hours Start 2025.09.27 @ 10:30:19 End 2025.09.27 @ 11:03:39 Sessions 1 Manual Loads 0 Difficulty Rogue Special Mode None Game No. 1 Rogue 1 Adventurer 0 Explorer 0 Win Type - Total 0 Types 0/0/0/0/0/0/0/0/0/0 Lore% 0 Gallery% 1 Achievement% 2 Wizard Run 0 Options --------- Layout 1 ASCII 0 Keyboard 0 Movement Arrows Keybinds 0 Fullscreen 1 Font 24/Smallcaps Map View 38x17 Zoom Use 87% Tactical HUD 0 Map Filters NONE Filters NONE Steam 1 RUN: 595e9e63-a9b2-409b-b776-8750fa8cc01b